[Event "Romanian Superleague 2022"]
[Site "Oradea"]
[Date "2022.09.26"]
[Round "6.18"]
[White "Ungureanu, Vlad"]
[Black "Gulie, Cosmin"]
[Result "1-0"]
[ECO "D45"]
[WhiteElo "2287"]
[BlackElo "1973"]
[Annotator "TA"]
[PlyCount "91"]
[EventDate "2022.09.21"]
[EventType "team-tourn"]
[EventCountry "ROU"]
[SourceTitle "playchess.com"]
[Source "ChessBase"]
[SourceQuality "1"]
[TimeControl "40/5400+30:1800+30"]

{[%evp 9,91,17,20,0,0,0,0,0,0,0,29,-10,0,0,0,0,4,10,14,0,0,0,0,-12,-10,-19,-20,-29,0,-38,-34,-53,0,0,0,0,0,0,0,0,0,0,8,0,10,0,14,0,0,0,116,104,125,87,172,164,164,166,161,166,174,183,187,87,306,314,316,302,312,310,323,317,737,784,736,720,702,699,869,776,29980,29964,5047,5047]} 1. d4 {[%emt 0:00:03]} d5 {[%emt 0:00:12]} 2. c4 {[%emt 0:00:07]} e6 {[%emt 0:00:13]} 3. Nc3 {[%emt 0:00:06]} Nf6 {[%emt 0:00:14]} 4. Nf3 {[%emt 0:00:03]} c6 {[%emt 0:00:17]} 5. e3 {[%emt 0:00:05]} Nbd7 {[%emt 0:00:29]} 6. a4 {[%emt 0:00:06] D45: Semi-Slav: 5 e3.} a5 {[%emt 0:10:03]} 7. Bd3 {[%emt 0:00:35]} Bb4 {[%emt 0:01:16]} 8. O-O {[%emt 0:00:45] The position is equal.} Qe7 {[%emt 0:03:25]} 9. Qc2 {[%emt 0:17:11] [#]} e5 $146 {[%emt 0:14:12]} ({Predecessor:} 9... O-O 10. Bd2 Rd8 11. cxd5 exd5 12. Rfe1 h6 13. Ne2 Bd6 14. Ng3 Bxg3 15. hxg3 Ne4 {½-½ (38) Alava Moreno,F (2365)-Egorov,V (2327) LSS email 2015}) 10. e4 {[%emt 0:11:40]} dxc4 {[%emt 0:11:39]} 11. Bxc4 {[%emt 0:01:19]} exd4 {[%emt 0:01:28]} 12. Nxd4 {[%emt 0:07:17]} Ne5 {[%emt 0:01:47]} 13. Be2 {[%emt 0:05:59]} Bc5 {[%emt 0:02:18]} 14. Nf5 {[%emt 0:07:49]} Bxf5 {[%emt 0:02:57]} 15. exf5 {[%emt 0:01:17]} h6 {[%emt 0:00:06]} 16. Bf4 {[%emt 0:04:29]} O-O {[%emt 0:03:31]} 17. Bg3 {[%emt 0:02:09]} Rfe8 {[%emt 0:04:18]} 18. Bh4 {[%emt 0:01:07]} Bd4 {[%emt 0:00:11]} 19. Ne4 {[%emt 0:06:34] [#] aiming for Nxf6+.} Ned7 {[%emt 0:00:30]} 20. Bf3 {[%emt 0:03:35]} Qe5 {[%emt 0:00:44]} ({Better is} 20... Qb4 $15 21. Nxf6+ Nxf6) 21. Rae1 $11 {[%emt 0:02:21]} Nxe4 {[%emt 0:02:46]} 22. Rxe4 {[%emt 0:01:16]} Qc5 {[%emt 0:00:06]} (22... Qd6 {seems wilder.} 23. Rd1 Nf6 24. Rxe8+ Rxe8 25. Qd2 Qe5) 23. Qxc5 {[%emt 0:13:21]} Bxc5 {[%emt 0:00:06]} 24. Rfe1 {[%emt 0:02:28]} Rxe4 {[%emt 0:01:01]} 25. Rxe4 {[%emt 0:00:57]} Nf6 {[%emt 0:00:52]} 26. Re5 {[%emt 0:03:27]} Bd6 {[%emt 0:00:30]} 27. Re3 {[%emt 0:01:10]} Rd8 {[%emt 0:01:05]} 28. g4 {[%emt 0:00:33]} Bc5 {[%emt 0:00:12]} 29. Re5 {[%emt 0:01:36][%cal Be3e5,Be5a5,Ba5a8][%mdl 32]} Bd6 {[%emt 0:00:41]} (29... Bb4 $11 {remains equal.}) 30. Rxa5 $16 {[%emt 0:00:27]} Bf4 {[%emt 0:01:32]} 31. b4 {[%emt 0:02:39]} Rd3 {[%emt 0:06:32]} (31... Rd4 $16) 32. Kg2 $18 {[%emt 0:00:13] Strongly threatening Ra7.} Rb3 {[%emt 0:00:21]} 33. b5 {[%emt 0:00:54]} cxb5 {[%emt 0:00:11]} 34. axb5 {[%emt 0:01:33]} b6 {[%emt 0:00:38]} 35. Ra8+ {[%emt 0:00:16]} Kh7 {[%emt 0:00:09]} 36. Rf8 {[%emt 0:00:20]} (36. Ra7 $18 {has better winning chances.}) 36... Bg5 {[%emt 0:01:54] [#] Black cannot hold the game after this.} (36... Nd7 $16 37. Bd5 (37. Rxf7 Ne5 $16) 37... Rxb5) 37. Bg3 {[%emt 0:01:11]} Rxb5 {[%emt 0:00:28]} 38. Rxf7 {[%emt 0:00:42]} Rb4 {[%emt 0:05:10]} 39. h4 {[%emt 0:01:21][%cal Bh2h4,Bh4g5][%mdl 32]} Bc1 {[%emt 0:14:05]} 40. Be5 {[%emt 0:00:00] This bishop pair is nice.} Bb2 $2 {[%emt 0:00:00]} (40... Kg8) 41. Bxb2 {[%emt 0:01:05]} Rxb2 {[%emt 0:00:40]} 42. g5 {[%emt 0:00:22]} Kg8 {[%emt 0:00:44]} 43. Rb7 {[%emt 0:00:25]} hxg5 {[%emt 0:03:17]} 44. hxg5 {[%emt 0:00:22]} Ne8 {[%emt 0:01:10]} 45. Rb8 {[%emt 0:01:01]} Kf8 {[%emt 0:00:06]} 46. Bh5 {[%emt 0:00:11] Weighted Error Value: White=0.10 (very precise) /Black=0.42} 1-0

[Event "Romanian Superleague 2022"]
[Site "Oradea"]
[Date "2022.09.26"]
[Round "6.19"]
[White "Berkes, Ferenc"]
[Black "Kozak, Adam"]
[Result "1/2-1/2"]
[ECO "D44"]
[WhiteElo "2651"]
[BlackElo "2516"]
[Annotator "TA"]
[PlyCount "57"]
[EventDate "2022.09.21"]
[EventType "team-tourn"]
[EventCountry "ROU"]
[SourceTitle "playchess.com"]
[Source "ChessBase"]
[SourceQuality "1"]
[TimeControl "40/5400+30:1800+30"]

{[%evp 29,44,35,34,47,34,0,0,0,0,0,0,0,0,0,0,0,0]} 1. d4 {[%emt 0:00:04]} d5 {[%emt 0:00:23]} 2. c4 {[%emt 0:00:08]} e6 {[%emt 0:00:26]} 3. Nc3 {[%emt 0:00:15]} Nf6 {[%emt 0:00:16]} 4. Nf3 {[%emt 0:00:34]} c6 {[%emt 0:00:29]} 5. Bg5 {[%emt 0:00:22]} dxc4 {[%emt 0:00:23]} 6. e4 {[%emt 0:00:13][%cal Be2e4,Be4e5][%mdl 32]} b5 {[%emt 0:00:17]} 7. e5 {[%emt 0:00:10]} h6 {[%emt 0:00:08]} 8. Bh4 {[%emt 0:00:09]} g5 {[%emt 0:00:14]} 9. Nxg5 {[%emt 0:00:16]} hxg5 {[%emt 0:00:09]} 10. Bxg5 {[%emt 0:00:05]} Be7 {[%emt 0:00:24]} 11. exf6 {[%emt 0:00:10]} Bxf6 {[%emt 0:00:07]} 12. Bxf6 {[%emt 0:00:35]} Qxf6 {[%emt 0:00:10]} 13. g3 {[%emt 0:00:06]} Bb7 {[%emt 0:00:11]} 14. Bg2 {[%emt 0:00:12]} Na6 {[%emt 0:00:23]} 15. Ne4 {[%emt 0:01:01]} Qe7 {[%emt 0:00:24]} 16. O-O {[%emt 0:00:13] D44: Semi-Slav: Botvinnik System.} O-O-O {[%emt 0:00:58]} 17. a4 {[%emt 0:01:54]} f5 {[%emt 0:01:01] The position is equal.} 18. axb5 {[%emt 0:00:15]} cxb5 {[%emt 0:00:18]} 19. Rxa6 $1 {[%emt 0:00:10]} Bxa6 {[%emt 0:00:22]} 20. Nc5 {[%emt 0:00:12]} Qxc5 $1 {[%emt 0:01:18]} 21. dxc5 {[%emt 0:00:47]} Rxd1 {[%emt 0:00:08]} 22. Rxd1 {[%emt 0:00:03] [#] Ra1 is the strong threat.} b4 {[%emt 0:00:29] [#]  Weighted Error Value: White=0.07 (flawless) /Black=0.00 (flawless)} {Predecessor:} 23. Ra1 $146 b3 24. Bf1 Rd8 25. h4 Bb5 26. h5 a5 27. Rxa5 c3 28. bxc3 Bxf1 29. Ra8+ {½-½ (46) Gukesh,D (2614)-Erigaisi,A (2633) Kanpur 2022} 1/2-1/2

[Event "Romanian Superleague 2022"]
[Site "Oradea"]
[Date "2022.09.26"]
[Round "6.21"]
[White "Jianu, Vlad-Cristian"]
[Black "Bonte, Andrei-Mihai"]
[Result "1-0"]
[ECO "A14"]
[WhiteElo "2511"]
[BlackElo "2339"]
[Annotator "RC"]
[PlyCount "75"]
[EventDate "2022.09.21"]
[EventType "team-tourn"]
[EventCountry "ROU"]
[SourceTitle "playchess.com"]
[Source "ChessBase"]
[SourceQuality "1"]
[TimeControl "40/5400+30:1800+30"]

1. c4 {[%emt 0:00:03]} Nf6 {[%emt 0:04:46]} 2. Nf3 {[%emt 0:01:34]} e6 {[%emt 0:03:53]} 3. g3 {[%emt 0:00:46]} d5 {[%emt 0:03:14]} 4. Bg2 {[%emt 0:00:07]} Be7 {[%emt 0:00:06]} 5. O-O {[%emt 0:00:34]} O-O {[%emt 0:00:07]} 6. b3 {[%emt 0:00:19]} b6 {[%emt 0:02:13]} 7. Bb2 {[%emt 0:00:41]} Bb7 {[%emt 0:00:08]} 8. e3 {[%emt 0:00:14]} dxc4 {[%emt 0:02:24]} 9. bxc4 {[%emt 0:00:07]} c5 {[%emt 0:00:04]} 10. d3 {[%emt 0:03:36]} Nc6 {[%emt 0:01:36]} 11. Qe2 {[%emt 0:00:17]} Qc8 {[%emt 0:02:16]} 12. Nc3 {[%emt 0:01:48]} Rd8 {[%emt 0:00:51]} 13. Rfd1 {[%emt 0:03:50]} a6 {[%emt 0:07:07]} 14. Rab1 {[%emt 0:07:36]} Ra7 {[%emt 0:10:35]} 15. Ba1 {[%emt 0:05:42]} Nd7 {[%emt 0:04:20]} 16. h4 {[%emt 0:13:59]} Qc7 {[%emt 0:15:44]} 17. Ng5 {[%emt 0:03:08]} h6 {[%emt 0:03:22]} 18. Nge4 {[%emt 0:05:54]} f5 {[%emt 0:04:07]} 19. Nd2 {[%emt 0:00:12]} Nde5 {[%emt 0:02:14]} 20. Nf1 {[%emt 0:19:26]} Nb4 {[%emt 0:04:38]} 21. f4 {[%emt 0:03:04]} Bxg2 {[%emt 0:03:34]} 22. Kxg2 {[%emt 0:03:30]} Qc6+ {[%emt 0:10:13]} 23. Kg1 {[%emt 0:00:19]} Nexd3 {[%emt 0:01:08]} 24. a3 {[%emt 0:02:53]} Rad7 {[%emt 0:00:44]} 25. Rd2 {[%emt 0:01:23]} b5 {[%emt 0:01:54]} 26. axb4 {[%emt 0:03:28]} cxb4 {[%emt 0:01:46]} 27. Nd5 {[%emt 0:06:12]} exd5 {[%emt 0:01:44]} 28. cxb5 {[%emt 0:00:17]} Qxb5 {[%emt 0:03:41]} 29. Rxd3 {[%emt 0:00:34]} Rc8 {[%emt 0:01:34]} 30. Rbd1 {[%emt 0:02:19]} a5 {[%emt 0:01:08]} 31. Nh2 {[%emt 0:02:45]} a4 {[%emt 0:01:36]} 32. Nf3 {[%emt 0:00:47]} b3 {[%emt 0:01:57]} 33. Nd4 {[%emt 0:01:38]} Qb6 {[%emt 0:00:24]} 34. Nxf5 {[%emt 0:01:30]} Qg6 {[%emt 0:00:09]} 35. Rxd5 {[%emt 0:01:08]} Rc2 {[%emt 0:01:12]} 36. Rxd7 {[%emt 0:02:23]} Qxf5 {[%emt 0:00:44]} 37. Rxe7 {[%emt 0:00:43]} Kf8 {[%emt 0:01:04]} 38. Ra7 {[%emt 0:01:16]} 1-0

[Event "Romanian Superleague 2022"]
[Site "Oradea"]
[Date "2022.09.26"]
[Round "6.22"]
[White "Ognean, Mihnea-Ionut"]
[Black "Parligras, Mircea-Emilian"]
[Result "1/2-1/2"]
[ECO "C54"]
[WhiteElo "2303"]
[BlackElo "2560"]
[Annotator "ChessBase"]
[PlyCount "104"]
[EventDate "2022.09.21"]
[EventType "team-tourn"]
[EventCountry "ROU"]
[SourceTitle "playchess.com"]
[Source "ChessBase"]
[SourceQuality "1"]
[TimeControl "40/5400+30:1800+30"]

1. e4 {[%emt 0:00:04]} e5 {[%emt 0:00:24]} 2. Nf3 {[%emt 0:00:18]} Nc6 {[%emt 0:00:09]} 3. Bc4 {[%emt 0:00:28]} Bc5 {[%emt 0:00:22]} 4. c3 {[%emt 0:00:34]} Nf6 {[%emt 0:00:13]} 5. d3 {[%emt 0:00:11]} a6 {[%emt 0:00:52]} 6. a4 {[%emt 0:00:42]} d6 {[%emt 0:00:22]} 7. O-O {[%emt 0:00:53]} Ba7 {[%emt 0:00:18]} 8. Re1 {[%emt 0:00:58]} h6 {[%emt 0:06:03]} 9. b4 {[%emt 0:02:33]} O-O {[%emt 0:00:54]} 10. h3 {[%emt 0:00:25]} Ne7 {[%emt 0:00:44]} 11. Nbd2 {[%emt 0:03:38]} Ng6 {[%emt 0:00:53]} 12. Nf1 {[%emt 0:00:46]} c6 {[%emt 0:04:09]} 13. a5 {[%emt 0:02:32]} d5 {[%emt 0:01:51]} 14. Bb3 {[%emt 0:03:21]} dxe4 {[%emt 0:12:13]} 15. dxe4 {[%emt 0:00:04]} Qxd1 {[%emt 0:00:05]} 16. Bxd1 {[%emt 0:00:20]} Be6 {[%emt 0:00:12]} 17. Bc2 {[%emt 0:04:32]} c5 {[%emt 0:07:01]} 18. Be3 {[%emt 0:06:08]} Rfc8 {[%emt 0:06:38]} 19. Bd3 {[%emt 0:17:08]} cxb4 {[%emt 0:06:40]} 20. cxb4 {[%emt 0:00:45]} Bxe3 {[%emt 0:04:02]} 21. Rxe3 {[%emt 0:04:08]} Rc3 {[%emt 0:08:56]} 22. N1d2 {[%emt 0:00:51]} Rd8 {[%emt 0:09:56]} 23. Bf1 {[%emt 0:00:23]} Rxe3 {[%emt 0:00:18]} 24. fxe3 {[%emt 0:00:04]} Nh4 {[%emt 0:02:07]} 25. Rc1 {[%emt 0:01:53]} Nxf3+ {[%emt 0:01:32]} 26. Nxf3 {[%emt 0:00:04]} Nxe4 {[%emt 0:03:22]} 27. Nxe5 {[%emt 0:00:05]} Ng3 {[%emt 0:05:37]} 28. Bc4 {[%emt 0:15:48]} Rc8 {[%emt 0:01:42]} 29. Rc2 {[%emt 0:00:08]} Ne4 {[%emt 0:02:32]} 30. Bd3 {[%emt 0:03:15]} Rxc2 {[%emt 0:00:07]} 31. Bxc2 {[%emt 0:00:03]} Nc3 {[%emt 0:00:12]} 32. Kf2 {[%emt 0:02:00]} Kf8 {[%emt 0:04:08]} 33. e4 {[%emt 0:11:24]} Na2 {[%emt 0:05:21]} 34. Nd3 {[%emt 0:01:20]} Bc4 {[%emt 0:00:11]} 35. Ne5 {[%emt 0:01:29]} Be6 {[%emt 0:01:59]} 36. Nd3 {[%emt 0:00:04]} Ke7 {[%emt 0:00:31]} 37. Ke3 {[%emt 0:01:14]} Bc4 {[%emt 0:00:33]} 38. Bb1 {[%emt 0:00:47]} Nc3 {[%emt 0:01:48]} 39. Kd4 {[%emt 0:03:47]} Nxb1 {[%emt 0:00:23]} 40. Kxc4 {[%emt 0:00:00]} Kd6 {[%emt 0:00:00]} 41. e5+ {[%emt 0:02:49]} Kc6 {[%emt 0:00:48]} 42. h4 {[%emt 0:01:12]} Nd2+ {[%emt 0:03:27]} 43. Kd4 {[%emt 0:01:21]} Nf1 {[%emt 0:01:08]} 44. Ke4 {[%emt 0:10:01]} Ng3+ {[%emt 0:02:25]} 45. Kf4 {[%emt 0:01:23]} Ne2+ {[%emt 0:00:10]} 46. Ke3 {[%emt 0:01:04]} Nc3 {[%emt 0:00:09]} 47. Kd4 {[%emt 0:00:14]} Nd5 {[%emt 0:03:47]} 48. h5 {[%emt 0:11:13]} Ne7 {[%emt 0:03:24]} 49. Nc5 {[%emt 0:06:49]} Nf5+ {[%emt 0:05:56]} 50. Ke4 {[%emt 0:00:05]} Ng3+ {[%emt 0:00:12]} 51. Kf3 {[%emt 0:00:04]} Nf5 {[%emt 0:00:05]} 52. Ke4 {[%emt 0:00:04]} Ng3+ {[%emt 0:00:04]} 1/2-1/2

[Event "Romanian Superleague 2022"]
[Site "Oradea"]
[Date "2022.09.26"]
[Round "6.23"]
[White "Gavrilescu, David"]
[Black "Ileana, George"]
[Result "1-0"]
[ECO "B90"]
[WhiteElo "2523"]
[BlackElo "2301"]
[Annotator "TA"]
[PlyCount "81"]
[EventDate "2022.09.21"]
[EventType "team-tourn"]
[EventCountry "ROU"]
[SourceTitle "playchess.com"]
[Source "ChessBase"]
[SourceQuality "1"]
[TimeControl "40/5400+30:1800+30"]

{[%evp 12,81,28,9,26,42,56,55,53,47,45,36,40,10,35,3,56,45,54,54,58,64,104,94,98,104,92,89,227,217,208,203,212,214,311,310,273,230,233,206,165,152,152,141,169,168,169,157,195,139,159,140,157,135,377,376,399,358,666,672,655,679,685,530,523,505,29984,29985,29985,474,29986,29987]} 1. e4 {[%emt 0:00:16]} c5 {[%emt 0:00:12]} 2. Nf3 {[%emt 0:00:16]} d6 {[%emt 0:00:05]} 3. d4 {[%emt 0:00:32]} cxd4 {[%emt 0:00:06]} 4. Nxd4 {[%emt 0:00:13]} Nf6 {[%emt 0:00:08]} 5. Nc3 {[%emt 0:00:17]} a6 {[%emt 0:00:23]} 6. Be3 {[%emt 0:00:37]} e5 {[%emt 0:01:31]} 7. Nf3 {[%emt 0:00:30][%cal Bd4f3,Bf3d2,Bd2c4,Bc4b6][%mdl 32]} h6 {[%emt 0:01:56] B90: Sicilian Najdorf: Unusual White 6th moves, 6 Be3 Ng4 and 6 Be3 e5.} 8. Nd2 {[%emt 0:00:20]} Be6 {[%emt 0:00:29]} 9. Nc4 {[%emt 0:01:23]} Nc6 {[%emt 0:03:10] White is slightly better.} 10. Nb6 {[%emt 0:02:59]} Rb8 {[%emt 0:00:22]} 11. Nbd5 {[%emt 0:06:04]} Be7 {[%emt 0:00:24] [#]} 12. Qd2 $146 {[%emt 0:15:20]} ({Predecessor:} 12. Bb6 Qd7 13. Nc7+ Kf8 14. Nxe6+ fxe6 15. Qf3 g6 16. Bc4 Kg7 17. O-O Rbe8 18. Rad1 {½-½ (83) Villalba,M (2258)-Osorio Guevara,J (2099) Chess.com INT 2020}) 12... O-O {[%emt 0:02:01]} 13. Rd1 {[%emt 0:02:07]} Ne8 {[%emt 0:00:16]} (13... Bxd5 $11 14. exd5 Nd4) 14. Nxe7+ {[%emt 0:07:57]} Qxe7 {[%emt 0:00:38]} 15. Be2 {[%emt 0:02:59]} Rd8 {[%emt 0:01:51]} 16. O-O {[%emt 0:02:01]} Nf6 {[%emt 0:00:29]} 17. Bb6 {[%emt 0:00:24]} Rd7 {[%emt 0:10:46] [#]} 18. Nd5 $1 {[%emt 0:00:35]} Bxd5 {[%emt 0:00:33]} 19. exd5 {[%emt 0:00:06]} Nd8 {[%emt 0:00:37]} (19... Nd4 $16) 20. c4 $18 {[%emt 0:03:06]} Ne4 {[%emt 0:00:17]} 21. Qc2 {[%emt 0:01:10]} f5 {[%emt 0:00:10]} 22. Bd3 {[%emt 0:01:13]} g6 {[%emt 0:00:17]} (22... Qf7 $142 23. f4 (23. Bxe4 fxe4 24. Qxe4 Qh5 $16) 23... Qe8 24. Bxe4 fxe4) 23. Bxe4 {[%emt 0:01:01]} fxe4 {[%emt 0:00:10]} 24. Qxe4 {[%emt 0:00:04]} Kh7 {[%emt 0:00:26]} 25. f4 {[%emt 0:05:57]} exf4 {[%emt 0:00:37]} 26. Qxe7+ {[%emt 0:01:52]} Rxe7 {[%emt 0:00:04]} 27. Rde1 {[%emt 0:00:06]} Ref7 {[%emt 0:01:07]} 28. Re4 {[%emt 0:01:46]} g5 {[%emt 0:00:52]} 29. Rfe1 {[%emt 0:04:38] Hoping for Re8.} f3 {[%emt 0:01:12]} 30. Kf2 {[%emt 0:07:12]} (30. Re7 $18) 30... fxg2+ $16 {[%emt 0:01:37]} 31. Kxg2 {[%emt 0:00:03] Threatens to win with Re8.} Rf5 {[%emt 0:01:24]} 32. Re7+ {[%emt 0:00:59]} Nf7 $2 {[%emt 0:00:15] This move loses the game for Black.} (32... Kg6 $16 33. Bxd8 Rxd8) 33. R1e6 $18 {[%emt 0:01:33]} h5 {[%emt 0:04:53]} 34. Rxd6 {[%emt 0:01:44] aiming for Rde6.} g4 $2 {[%emt 0:01:46]} (34... Re8) 35. Be3 {[%emt 0:05:19]} Rc8 {[%emt 0:05:54]} 36. c5 {[%emt 0:01:06]} Kg8 {[%emt 0:00:34]} 37. Rg6+ {[%emt 0:00:23]} Kf8 {[%emt 0:00:38]} 38. d6 {[%emt 0:00:03][%cal Bd5d6,Bd6d7][%mdl 32] d7 is the strong threat.} b6 {[%emt 0:03:02]} (38... Re8 $18 39. Rg8+ Kxg8 40. Rxe8+ Kg7) 39. d7 {[%emt 0:00:12]} Rd8 {[%emt 0:00:07]} 40. Re8+ {[%emt 0:00:00]} Rxe8 {[%emt 0:00:00] [#]} 41. Rg8+ $3 {[%emt 0:00:07][%mdl 576] Skewer, Promotion.  Weighted Error Value: White=0.13 (very precise) /Black=0.52} 1-0

[Event "Romanian Superleague 2022"]
[Site "Oradea"]
[Date "2022.09.26"]
[Round "6.24"]
[White "Pisu, Robert-Daniel"]
[Black "Costachi, Mihnea"]
[Result "1/2-1/2"]
[ECO "C60"]
[WhiteElo "2223"]
[BlackElo "2470"]
[Annotator "TA"]
[PlyCount "83"]
[EventDate "2022.09.21"]
[EventType "team-tourn"]
[EventCountry "ROU"]
[SourceTitle "playchess.com"]
[Source "ChessBase"]
[SourceQuality "1"]
[TimeControl "40/5400+30:1800+30"]

{[%evp 9,83,32,30,29,47,31,77,67,123,54,62,31,46,1,7,0,5,0,0,0,0,0,0,-6,0,0,0,-4,0,0,0,0,0,0,0,0,0,0,0,-1,0,0,0,0,0,-4,-4,-6,-9,-10,0,-1,0,0,0,-12,-17,-20,0,0,0,0,-3,-2,0,-6,-8,-9,-4,-6,0,0,0,0,0,0]} 1. e4 {[%emt 0:00:03]} e5 {[%emt 0:00:46]} 2. Nf3 {[%emt 0:00:08]} Nc6 {[%emt 0:00:58]} 3. Bb5 {[%emt 0:00:07]} Nge7 {[%emt 0:07:04]} 4. c3 {[%emt 0:10:43]} Ng6 {[%emt 0:04:42]} 5. d4 {[%emt 0:05:45]} exd4 {[%emt 0:07:41]} 6. cxd4 {[%emt 0:00:23] C60: Ruy Lopez: Unusual Black 3rd moves and 3...g6.} Bb4+ {[%emt 0:00:23]} 7. Nc3 {[%emt 0:08:31]} O-O {[%emt 0:01:59]} (7... d5 $14 {is superior.}) 8. O-O $16 {[%emt 0:08:09] White is better.} Nce7 {[%emt 0:11:37] [#]} (8... d6 $14) 9. Qb3 $146 {[%emt 0:04:45]} ({Better is} 9. h4 $1 $16) ({Predecessor:} 9. Bc4 Bxc3 10. bxc3 d5 11. exd5 Nxd5 12. Qb3 c6 13. Ba3 Re8 14. Rfe1 Rxe1+ 15. Rxe1 {1-0 (28) Duester,T-Schreck,R Waldshut 1981}) 9... Ba5 $14 {[%emt 0:05:58]} 10. Bc4 {[%emt 0:05:42] White is much more active. The black rooks are badly placed.} c6 {[%emt 0:00:44]} 11. Ng5 {[%emt 0:04:17][%cal Rg5f7]} d5 {[%emt 0:04:34] The position is equal.} 12. exd5 {[%emt 0:05:45][%cal Og5f7] Hoping for Nxf7!} b5 {[%emt 0:01:38]} 13. d6 {[%emt 0:08:13]} (13. Bd3 {is more complex.} Bf5 14. Bxf5 Nxf5 15. dxc6 Nxd4 16. Qd1) 13... bxc4 {[%emt 0:04:21]} 14. dxe7 {[%emt 0:00:08]} cxb3 {[%emt 0:03:12]} 15. exd8=Q {[%emt 0:00:10] Dancing on a razor blade.} Rxd8 {[%emt 0:00:18]} 16. axb3 {[%emt 0:02:10]} Bb6 {[%emt 0:00:13]} 17. Nf3 {[%emt 0:01:33]} Be6 {[%emt 0:08:24]} 18. Ra3 {[%emt 0:07:45]} Bxd4 {[%emt 0:07:51]} (18... Ne7 {seems wilder.} 19. Bg5 f6 20. Re1 Kf7) 19. Nxd4 {[%emt 0:00:12]} Rxd4 {[%emt 0:00:04]} 20. Be3 {[%emt 0:00:41]} Rb4 {[%emt 0:00:11]} 21. Rfa1 {[%emt 0:03:36]} h6 {[%emt 0:03:57]} 22. Bc5 {[%emt 0:09:14]} Rxb3 {[%emt 0:01:34]} 23. Rxb3 {[%emt 0:00:05]} Bxb3 {[%emt 0:00:04]} 24. Rxa7 {[%emt 0:00:21]} Rd8 {[%emt 0:03:01]} 25. Rb7 {[%emt 0:02:38]} Be6 {[%emt 0:03:24]} 26. h3 {[%emt 0:03:02]} Ne5 {[%emt 0:01:53]} 27. Rb6 {[%emt 0:07:08]} Kh7 {[%emt 0:06:49]} 28. b4 {[%emt 0:00:41]} Rd3 {[%emt 0:04:10]} 29. Ne2 {[%emt 0:00:27]} Bc4 {[%emt 0:00:42]} 30. Kh2 {[%emt 0:01:45]} Rd2 {[%emt 0:00:41]} 31. Nc3 {[%emt 0:00:37]} Rd3 {[%emt 0:01:35]} 32. Ne4 {[%emt 0:00:35]} Bd5 {[%emt 0:01:05]} (32... Nd7 $5 33. Rb7 $8 Nxc5 34. Nxc5 Rd2 $11) 33. Nd6 {[%emt 0:01:06]} Ng6 {[%emt 0:02:10] aiming for ...Nh4.} 34. Nf5 {[%emt 0:00:31] Prevents Nh4.} Ne5 {[%emt 0:01:55]} 35. Ne3 {[%emt 0:00:09]} Be6 {[%emt 0:00:53]} 36. Rb7 {[%emt 0:00:43]} Rd2 {[%emt 0:00:28]} 37. Nf1 {[%emt 0:00:35]} Rc2 {[%emt 0:01:16]} 38. Rc7 {[%emt 0:00:17]} Nd3 {[%emt 0:00:40][%csl LRc5,LRf2]} 39. Rxc6 {[%emt 0:00:39]} Nxb4 {[%emt 0:00:30]} 40. Ne3 {[%emt 0:00:00]} Nxc6 {[%emt 0:00:00]} 41. Nxc2 {[%emt 0:00:39]} Ne5 {[%emt 0:01:57]} 42. Bd4 {[%emt 0:04:11] Weighted Error Value: White=0.06 (flawless) /Black=0.05 (flawless)} 1/2-1/2